fUSD/lending_fUSD_20251130
["ID","MTS","AMOUNT","RATE_DAILY","PERIOD"]
[395193378,1764532243001,-642.94,0.00016911,2]
[395193379,1764532243010,-553.64373807,0.00016911,2]
[395193380,1764532243020,-151.0,0.00016911,2]
[395193381,1764532243029,-3000.0,0.00016911,2]
[395193382,1764532243038,-9999.99,0.00016922,2]
[395193383,1764532243048,-264.05,0.00016922,2]
[395193384,1764532243057,-150.99,0.00016922,2]
[395193385,1764532243066,-150.0,0.00016948,2]
[395193386,1764532243075,-500.0,0.00016973,2]
[395193387,1764532243084,-500.0,0.00016973,2]
[395193388,1764532243094,-507.2295556,0.00016973,2]
[395193389,1764532243104,-500.0,0.00016973,2]
[395193390,1764532243113,-500.0,0.00016973,2]
[395193391,1764532243123,-500.0,0.00016973,2]
[395193392,1764532243132,-500.0,0.00016973,2]
[395193393,1764532243141,-500.0,0.00016973,2]
[395193394,1764532243153,-500.0,0.00016973,2]
[395193395,1764532243162,-162.090508,0.00016973,2]
[395193396,1764532243171,-500.0,0.00016973,2]
[395193397,1764532243181,-500.0,0.00016973,2]
[395193398,1764532243190,-500.0,0.00016973,2]
[395193399,1764532243200,-500.0,0.00016973,2]
[395193400,1764532243209,-166.09514249,0.00016973,2]
[395193401,1764532243218,-500.0,0.00016973,2]
[395193402,1764532243228,-500.0,0.00016973,2]
[395193403,1764532243237,-500.0,0.00016973,2]
[395193404,1764532243251,-500.0,0.00016973,2]
[395193405,1764532243260,-507.02104113,0.00016973,2]
[395193406,1764532243270,-200.00768026,0.00016973,2]
[395193407,1764532243280,-500.84139495,0.00016973,2]
[395193408,1764532243290,-500.0,0.00016973,2]
[395193409,1764532243300,-415.54250471,0.00016973,2]
[395193410,1764532243309,-501.13898668,0.00016973,2]
[395193411,1764532243319,-500.0,0.00016973,2]
[395193412,1764532243328,-317.71167471,0.00016973,2]
[395193413,1764532243338,-161.86969264,0.00016973,2]
[395193414,1764532243347,-500.0,0.00016973,2]
[395193415,1764532243356,-500.0,0.00016973,2]
[395193416,1764532243366,-500.0,0.00016973,2]
[395193417,1764532243376,-500.0,0.00016973,2]
[395193418,1764532243385,-500.0,0.00016973,2]
[395193419,1764532243395,-500.0,0.00016973,2]
[395193420,1764532243404,-500.99004668,0.00016973,2]
[395193421,1764532243414,-500.0,0.00016973,2]
[395193422,1764532243423,-500.0,0.00016973,2]
[395193423,1764532243433,-206.77101016,0.00016973,2]
[395193424,1764532243443,-500.0,0.00016973,2]
[395193425,1764532243452,-500.0,0.00016973,2]
[395193426,1764532243462,-500.0,0.00016973,2]
[395193427,1764532243472,-500.0,0.00016973,2]
[395193428,1764532243481,-500.0,0.00016973,2]
[395193429,1764532243490,-500.0,0.00016973,2]
[395193430,1764532243500,-538.70531259,0.00016973,2]
[395193432,1764532243511,-504.3033742,0.00016973,2]
[395193434,1764532243520,-500.0,0.00016973,2]
[395193436,1764532243530,-500.0,0.00016973,2]
[395193439,1764532243548,-500.0,0.00016973,2]
[395193442,1764532243559,-500.0,0.00016973,2]
[395193444,1764532243569,-500.0,0.00016973,2]
[395193446,1764532243579,-500.0,0.00016973,2]
[395193448,1764532243589,-500.0,0.00016973,2]
[395193450,1764532243598,-500.0,0.00016973,2]
[395193452,1764532243608,-501.16592491,0.00016973,2]
[395193454,1764532243617,-301.0,0.00016986,2]
[395193456,1764532243627,-251.67385662,0.00016986,2]
[395193458,1764532243637,-269.46110191,0.00016986,2]
[395193460,1764532243646,-257.83404255,0.00016986,2]
[395193462,1764532243656,-242.40385051,0.00016986,2]
[395193464,1764532243665,-159.46069334,0.00016986,2]
[395193466,1764532243675,-226.33262763,0.00016986,2]
[395193468,1764532243684,-155.37437988,0.00016986,2]
[395193470,1764532243694,-274.74372107,0.00016986,2]
[395193472,1764532243703,-272.71931474,0.00016986,2]
[395193474,1764532243713,-158.64772779,0.00016986,2]
[395193476,1764532243723,-247.88854209,0.00016986,2]
[395193478,1764532243732,-280.02350606,0.0001699,2]
[395193480,1764532243742,-280.02350606,0.0001699,2]
[395193482,1764532243751,-280.02350606,0.0001699,2]
[395193484,1764532243761,-151.0,0.00016997,2]
[395193486,1764532243772,-231.83347088,0.00016999,2]
[395193489,1764532243781,-500.0,0.00016999,2]
[395193490,1764532243791,-500.0,0.00016999,2]
[395193493,1764532243800,-500.0,0.00016999,2]
[395193494,1764532243811,-500.0,0.00016999,2]
[395193496,1764532243821,-500.0,0.00016999,2]
[395193499,1764532243830,-500.0,0.00016999,2]
[395193501,1764532243840,-500.0,0.00016999,2]
[395193503,1764532243849,-500.0,0.00016999,2]
[395193505,1764532243859,-500.0,0.00016999,2]
[395193507,1764532243868,-500.0,0.00016999,2]
[395193509,1764532243878,-584.28639426,0.00016999,2]
[395193511,1764532243887,-500.0,0.00016999,2]
[395193513,1764532243897,-500.0,0.00016999,2]
[395193515,1764532243907,-519.79569884,0.00016999,2]
[395193517,1764532243917,-500.0,0.00016999,2]
[395193519,1764532243927,-500.0,0.00016999,2]
[395193521,1764532243937,-500.0,0.00016999,2]
[395193523,1764532243949,-500.0,0.00016999,2]
[395193525,1764532243959,-500.0,0.00016999,2]
[395193527,1764532243970,-500.0,0.00016999,2]
[395193529,1764532243979,-500.0,0.00016999,2]
[395193531,1764532243989,-500.0,0.00016999,2]
[395193533,1764532243999,-500.0,0.00016999,2]
[395193535,1764532244009,-500.0,0.00016999,2]
[395193538,1764532244019,-500.0,0.00016999,2]
[395193539,1764532244029,-500.0,0.00016999,2]
[395193540,1764532244039,-523.46773215,0.00016999,2]
[395193541,1764532244049,-500.0,0.00016999,2]
[395193542,1764532244058,-500.0,0.00016999,2]
[395193543,1764532244069,-500.0,0.00016999,2]
[395193544,1764532244079,-500.0,0.00016999,2]
[395193545,1764532244094,-454.09196907,0.00016999,2]
[395193546,1764532244104,-300.0,0.00016999,2]
[395193547,1764532244114,-300.0,0.00016999,2]
[395193548,1764532244124,-300.0,0.00016999,2]
[395193549,1764532244133,-3172924.76838827,0.00017,2]
[395193576,1764532245541,-873.39,0.00017,2]
[395193577,1764532245554,-1480.0,0.00017,2]
[395193578,1764532245570,-456.2420658,0.00017,2]
[395193579,1764532245581,-19881.67986207,0.00017,2]
[395193580,1764532245592,-1115.2523778,0.00017,2]
[395193581,1764532245610,-161336.75091501,0.00017,2]
[395193582,1764532245839,-2899.72910962,0.00017,2]
[395193583,1764532245872,-1018.24174324,0.00017,2]
[395193584,1764532245884,-1632175.18733405,0.00017,2]
[395193585,1764532245901,-256186.15087877,0.00017,2]
[395193586,1764532245913,-1082.69199414,0.00017,2]
[395193587,1764532245924,-280.38542682,0.00017,2]
[395193588,1764532245966,-7170.03720231,0.00017,2]
[395193589,1764532245977,-4692.7587,0.00017,2]
[395193590,1764532245989,-12240.3074764,0.00017,2]
[395193591,1764532246000,-985.47922291,0.00017,2]
[395193592,1764532246244,-1180.90794168,0.00017,2]
[395193593,1764532246258,-347.65681638,0.00017,2]
[395193594,1764532246274,-23452.40817119,0.00017,2]
[395193623,1764532246714,-317.76,0.00014787,2]
[395193625,1764532246727,-609.68462173,0.00014787,2]
[395193627,1764532246737,-486.43122325,0.00015089,2]
[395193630,1764532246747,-6.12844055,0.00017,2]
[395193632,1764532246758,-1349.79,0.00017,2]
[395193634,1764532246770,-432.60481996,0.00017,2]
[395193636,1764532246782,-649.09208162,0.00017,2]
[395193639,1764532246793,-1983.22812345,0.00017,2]
[395193641,1764532246803,-17260.55160364,0.00017,2]
[395193643,1764532246814,-1079.51965539,0.00017,2]
[395193645,1764532246825,-484.62442324,0.00017,2]
[395193647,1764532246837,-1286.07,0.00017,2]
[395193649,1764532246848,-2960.37957675,0.00017,2]
[395193654,1764532246889,-426035.36260418,0.00017,2]
[395193657,1764532246901,-2330.85169496,0.00017,2]
[395193661,1764532246932,-51460.75145909,0.00017,2]
[395193686,1764533432132,-185.200438,0.00013606,2]
[395193687,1764533432142,-560.26,0.00013699,2]
[395193689,1764533432151,-220.09,0.00014006,2]
[395193690,1764533432161,-150.0,0.00014044,2]
[395193692,1764533432170,-902.48,0.00014064,2]
[395193694,1764533432180,-194.66785154,0.00014481,2]
[395193695,1764533432189,-163.43171046,0.00014581,2]
[395193696,1764533432252,-2587.56828954,0.00014581,2]
[395193697,1764533432262,-166.66,0.00014592,2]
[395193698,1764533432271,-497.37061815,0.00014659,2]
[395193699,1764533432282,-199.29803368,0.00014672,2]
[395193700,1764533432293,-276.37175395,0.00014672,2]
[395193701,1764533432305,-500.0,0.00014672,2]
[395193702,1764533432315,-354.23130468,0.00014672,2]
[395193703,1764533432327,-145.76869532,0.00014672,2]
[395193704,1764533432336,-500.0,0.00014672,2]
[395193705,1764533432345,-500.0,0.00014672,2]
[395193706,1764533432355,-500.0,0.00014672,2]
[395193707,1764533432364,-431.28971964,0.00014672,2]
[395193708,1764533432373,-500.0,0.00014672,2]
[395193709,1764533432383,-500.0,0.00014672,2]
[395193710,1764533432392,-500.0,0.00014672,2]
[395193711,1764533432402,-500.0,0.00014672,2]
[395193712,1764533432411,-500.0,0.00014672,2]
[395193713,1764533432421,-500.0,0.00014672,2]
[395193714,1764533432430,-150.0,0.00014672,2]
[395193716,1764533432439,-300.0,0.00014672,2]
[395193718,1764533432448,-1200.0,0.00014672,2]
[395193720,1764533432458,-5576.21402987,0.00014673,2]
[395193731,1764533432527,-301.34599202,0.00014672,2]
[395193734,1764533432538,-198.65400798,0.00014672,2]
[395193737,1764533432547,-101.34599202,0.00014672,2]
[395193744,1764533432602,-85.65400798,0.00014672,2]
[395193746,1764533432613,-500.0,0.00014672,2]
[395193748,1764533432623,-500.0,0.00014672,2]
[395193750,1764533432632,-500.0,0.00014672,2]
[395193752,1764533432641,-57801.80235071,0.00014673,2]
[395193753,1764533432653,-1104.82449094,0.00014673,2]
[395193754,1764533432664,-748.69638418,0.00014673,2]
[395193755,1764533432675,-618.42761719,0.00014673,2]
[395193756,1764533432687,-700.0,0.00014673,2]
[395193757,1764533432698,-1706.49592439,0.00014673,2]
[395193758,1764533432709,-1435.1029539,0.00014673,2]
[395193759,1764533432744,-476.33046027,0.00014672,2]
[395193761,1764533438285,-618.29641448,0.00014667,2]
[395193762,1764533438295,-23.66953973,0.00014672,2]
[395193763,1764533438308,-500.0,0.00014672,2]
[395193764,1764533438317,-500.0,0.00014672,2]
[395193765,1764533438327,-500.0,0.00014672,2]
[395193766,1764533438336,-500.0,0.00014672,2]
[395193767,1764533438346,-500.0,0.00014672,2]
[395193768,1764533438355,-500.0,0.00014672,2]
[395193769,1764533438364,-500.0,0.00014672,2]
[395193770,1764533438374,-500.0,0.00014672,2]
[395193771,1764533438383,-500.0,0.00014672,2]
[395193772,1764533438392,-500.0,0.00014672,2]
[395193773,1764533438402,-500.0,0.00014672,2]
[395193774,1764533438411,-500.0,0.00014672,2]
[395193775,1764533438421,-500.0,0.00014672,2]
[395193776,1764533438430,-500.0,0.00014672,2]
[395193777,1764533438440,-500.0,0.00014672,2]
[395193778,1764533438449,-500.0,0.00014672,2]
[395193779,1764533438459,-500.0,0.00014672,2]
[395193780,1764533438469,-500.0,0.00014672,2]
[395193781,1764533438479,-500.0,0.00014672,2]
[395193782,1764533438489,-500.0,0.00014672,2]
[395193783,1764533438501,-500.0,0.00014672,2]
[395193784,1764533438511,-500.0,0.00014672,2]
[395193785,1764533438522,-500.0,0.00014672,2]
[395193786,1764533438531,-500.0,0.00014672,2]
[395193787,1764533438541,-500.0,0.00014672,2]
[395193788,1764533438551,-500.0,0.00014672,2]
[395193789,1764533438560,-500.0,0.00014672,2]
[395193790,1764533438569,-500.0,0.00014672,2]
[395193791,1764533438578,-500.0,0.00014672,2]
[395193792,1764533438588,-500.0,0.00014672,2]
[395193793,1764533438598,-500.0,0.00014672,2]
[395193794,1764533438607,-500.0,0.00014672,2]
[395193832,1764533439069,-500.0,0.00014672,2]
[395193834,1764533439097,-500.0,0.00014672,2]
[395193836,1764533439107,-73868.5722439,0.00014673,2]
[395193839,1764533439134,-24836.4774,0.00014673,2]
[395193842,1764533439151,-7189.11261252,0.00014673,2]
[395193844,1764533439164,-1168.8,0.00014673,2]
[395193845,1764533439176,-280.80017013,0.00014673,2]
[395193847,1764533439188,-582964.67382227,0.00014673,2]
[395193849,1764533439198,-9691.6634,0.0001476,2]
[395193851,1764533439207,-151.0,0.00014762,2]
[395193853,1764533439217,-857.684,0.0001477,2]
[395193854,1764533439227,-10281.35951436,0.00014773,2]
[395193856,1764533439237,-584.62,0.00014852,2]
[395193858,1764533439251,-200.0,0.00014852,2]
[395193860,1764533439261,-500.0,0.00014852,2]
[395193861,1764533439271,-500.0,0.00014852,2]
[395193863,1764533439280,-500.0,0.00014852,2]
[395193865,1764533439290,-500.0,0.00014852,2]
[395193867,1764533439300,-200.0,0.00014852,2]
[395193868,1764533439309,-500.0,0.00014852,2]
[395193870,1764533439319,-500.0,0.00014852,2]
[395193872,1764533439328,-500.0,0.00014852,2]
[395193874,1764533439338,-500.0,0.00014852,2]
[395193876,1764533439347,-500.0,0.00014852,2]
[395193877,1764533439356,-500.0,0.00014852,2]
[395193879,1764533439366,-500.0,0.00014852,2]
[395193881,1764533439375,-500.0,0.00014852,2]
[395193882,1764533439384,-151.0,0.00014852,2]
[395193884,1764533439394,-500.0,0.00014852,2]
[395193886,1764533439404,-151.0,0.00014852,2]
[395193888,1764533439413,-151.0,0.00014852,2]
[395193890,1764533439423,-151.0,0.00014852,2]
[395193892,1764533439433,-151.0,0.00014852,2]
[395193894,1764533439442,-151.0,0.00014852,2]
[395193896,1764533439451,-151.0,0.00014852,2]
[395193898,1764533439461,-151.0,0.00014852,2]
[395193900,1764533439470,-151.0,0.00014852,2]
[395193902,1764533439480,-151.0,0.00014852,2]
[395193904,1764533439490,-500.0,0.00014852,2]
[395193906,1764533439499,-151.0,0.00014852,2]
[395193907,1764533439508,-151.0,0.00014852,2]
[395193908,1764533439518,-151.0,0.00014852,2]
[395193909,1764533439527,-200.0,0.00014852,2]
[395193910,1764533439537,-231.83347088,0.0001486,2]
[395193911,1764533439546,-1504.22,0.0001486,2]
[395193912,1764533439555,-500.0,0.00014861,2]
[395193913,1764533439564,-500.0,0.00014861,2]
[395193914,1764533439573,-500.0,0.00014861,2]
[395193915,1764533439582,-500.0,0.00014861,2]
[395193916,1764533439592,-500.0,0.00014861,2]
[395193917,1764533439601,-500.0,0.00014861,2]
[395193918,1764533439610,-500.0,0.00014861,2]
[395193919,1764533439619,-500.0,0.00014861,2]
[395193920,1764533439628,-500.0,0.00014861,2]
[395193921,1764533439637,-500.0,0.00014861,2]
[395193922,1764533439646,-500.0,0.00014861,2]
[395193923,1764533439655,-500.0,0.00014861,2]
[395193924,1764533439664,-500.0,0.00014861,2]
[395193925,1764533439673,-500.0,0.00014861,2]
[395193926,1764533439687,-500.0,0.00014861,2]
[395193927,1764533439696,-180.47203465,0.00014861,2]
[395193928,1764533439706,-172.14260256,0.00014873,2]
[395193929,1764533439715,-500.0,0.00014873,2]
[395193930,1764533439724,-500.0,0.00014873,2]
[395193931,1764533439735,-500.0,0.00014873,2]
[395193933,1764533439744,-500.0,0.00014873,2]
[395193934,1764533439753,-565.90233254,0.00014873,2]
[395193936,1764533439763,-507.35080236,0.00014873,2]
[395193938,1764533439772,-161.07388452,0.00014873,2]
[395193940,1764533439782,-501.42223441,0.00014873,2]
[395193942,1764533439792,-500.0,0.00014873,2]
[395193944,1764533439802,-500.0,0.00014873,2]
[395193946,1764533439811,-500.0,0.00014873,2]
[395193948,1764533439821,-500.0,0.00014873,2]
[395193950,1764533439830,-160.07187961,0.00014873,2]
[395193952,1764533439840,-166.65415748,0.00014873,2]
[395193954,1764533439850,-500.0,0.00014873,2]
[395193956,1764533439859,-168.14188112,0.00014873,2]
[395193958,1764533439869,-500.0,0.00014873,2]
[395193961,1764533439879,-500.0,0.00014873,2]
[395193963,1764533439889,-500.0,0.00014873,2]
[395193965,1764533439898,-500.0,0.00014873,2]
[395193967,1764533439908,-500.0,0.00014873,2]
[395193969,1764533439917,-514.18188343,0.00014873,2]
[395193971,1764533439927,-500.0,0.00014873,2]
[395193973,1764533439938,-201.11548058,0.00014873,2]
[395193975,1764533439948,-500.0,0.00014873,2]
[395193977,1764533439957,-157.2860755,0.00014873,2]
[395193979,1764533439966,-500.0,0.00014873,2]
[395193981,1764533439976,-500.0,0.00014873,2]
[395193983,1764533439986,-179.01901015,0.00014873,2]
[395193985,1764533439995,-500.0,0.00014873,2]
[395193987,1764533440005,-500.69719188,0.00014873,2]
[395193989,1764533440014,-500.0,0.00014873,2]
[395193991,1764533440023,-500.0,0.00014873,2]
[395193993,1764533440033,-498.99397056,0.00014873,2]
[395193995,1764533440043,-500.40107887,0.00014873,2]
[395193997,1764533440053,-500.0,0.00014873,2]
[395194000,1764533440062,-250.0,0.000149,2]
[395194002,1764533440073,-250.0,0.000149,2]
[395194004,1764533440082,-250.0,0.000149,2]
[395194007,1764533440092,-250.0,0.000149,2]
[395194010,1764533440101,-250.0,0.000149,2]
[395194012,1764533440111,-250.0,0.000149,2]
[395194014,1764533440121,-250.0,0.000149,2]
[395194016,1764533440131,-250.0,0.000149,2]
[395194018,1764533440141,-250.0,0.000149,2]
[395194020,1764533440150,-250.0,0.000149,2]
[395194022,1764533440159,-250.0,0.000149,2]
[395194024,1764533440169,-250.0,0.000149,2]
[395194026,1764533440179,-250.0,0.000149,2]
[395194028,1764533440188,-250.0,0.000149,2]
[395194030,1764533440198,-250.0,0.000149,2]
[395194032,1764533440208,-250.0,0.000149,2]
[395194034,1764533440217,-225.29829185,0.000149,2]
[395194037,1764533440231,-155.99,0.00014957,2]
[395194039,1764533440241,-250.0,0.00014967,2]
[395194041,1764533440254,-497.37061812,0.00014979,2]
[395194043,1764533440264,-10281.35951436,0.00015009,2]
[395194045,1764533440273,-999.0,0.00015012,3]
[395194047,1764533440283,-166.66,0.00015073,2]
[395194049,1764533440295,-170.1,0.00015076,2]
[395194051,1764533440305,-584.62,0.00015126,2]
[395194053,1764533440315,-600.0,0.00015135,2]
[395194055,1764533440327,-209.0,0.00015163,2]
[395194058,1764533440337,-1406.22575754,0.00015211,2]
[395194060,1764533440349,-10281.35951436,0.00015246,2]
[395194062,1764533440359,-150.0,0.00015288,2]
[395194064,1764533440368,-150.0,0.00015288,2]
[395194066,1764533440378,-150.0,0.00015288,2]
[395194068,1764533440387,-150.0,0.00015288,2]
[395194070,1764533440397,-150.0,0.00015288,2]
[395194072,1764533440406,-150.0,0.00015288,2]
[395194074,1764533440416,-150.37128175,0.00015288,2]
[395194076,1764533440425,-157.84068384,0.00015288,2]
[395194078,1764533440436,-150.0,0.00015288,2]
[395194080,1764533440446,-150.0,0.00015288,2]
[395194082,1764533440456,-150.0,0.00015288,2]
[395194085,1764533440466,-150.0,0.00015288,2]
[395194087,1764533440475,-150.0,0.00015288,2]
[395194089,1764533440485,-497.37061812,0.00015299,2]
[395194091,1764533440495,-151.0,0.0001531,2]
[395194093,1764533440505,-150.0,0.00015314,2]
[395194095,1764533440514,-150.0,0.0001534,2]
[395194097,1764533440524,-150.0,0.00015362,2]
[395194099,1764533440534,-150.0,0.00015366,2]
[395194101,1764533440544,-150.0,0.00015382,2]
[395194103,1764533440554,-150.0,0.00015388,2]
[395194105,1764533440563,-150.0,0.00015392,2]
[395194107,1764533440573,-584.62,0.000154,2]
[395194109,1764533440583,-200.0,0.000154,2]
[395194111,1764533440592,-500.0,0.000154,2]
[395194113,1764533440601,-200.0,0.000154,2]
[395194115,1764533440611,-150.0,0.00015401,2]
[395194117,1764533440621,-150.0,0.00015409,2]
[395194119,1764533440630,-600.0,0.00015409,2]
[395194121,1764533440640,-150.0,0.00015418,2]
[395194123,1764533440650,-150.0,0.00015418,2]
[395194126,1764533440660,-1007.74563265,0.00015421,2]
[395194128,1764533440670,-1000.0,0.00015421,2]
[395194130,1764533440679,-500.0,0.00015421,2]
[395194132,1764533440688,-500.0,0.00015421,2]
[395194134,1764533440697,-506.31065896,0.00015421,2]
[395194136,1764533440707,-1000.0,0.00015421,2]
[395194138,1764533440716,-1000.0,0.00015421,2]
[395194140,1764533440727,-1000.0,0.00015421,2]
[395194142,1764533440736,-1000.0,0.00015421,2]
[395194144,1764533440745,-1000.0,0.00015421,2]
[395194146,1764533440755,-1000.0,0.00015421,2]
[395194148,1764533440764,-1000.0,0.00015421,2]
[395194150,1764533440773,-957.90842426,0.00015421,2]
[395194152,1764533440783,-160.8098875,0.00015421,2]
[395194154,1764533440792,-1000.0,0.00015421,2]
[395194156,1764533440801,-1000.0,0.00015421,2]
[395194158,1764533440810,-500.91562357,0.00015421,2]
[395194160,1764533440819,-1000.0,0.00015421,2]
[395194162,1764533440829,-1000.0,0.00015421,2]
[395194164,1764533440838,-696.8967906,0.00015421,2]
[395194166,1764533440847,-150.0,0.00015435,2]
[395194168,1764533440857,-150.0,0.00015444,2]
[395194170,1764533440866,-150.0,0.00015471,2]
[395194172,1764533440875,-150.0,0.00015476,2]
[395194174,1764533440884,-150.0,0.00015476,2]
[395194176,1764533440893,-10281.35951436,0.00015482,2]
[395194178,1764533440904,-150.0,0.00015488,2]
[395194180,1764533440914,-150.0,0.00015497,2]
[395194182,1764533440923,-150.0,0.00015509,2]
[395194184,1764533440933,-150.0,0.00015514,2]
[395194186,1764533440942,-150.0,0.00015523,2]
[395194188,1764533440952,-150.0,0.0001553,2]
[395194190,1764533440961,-150.0,0.0001553,2]
[395194192,1764533440971,-150.0,0.00015549,2]
[395194194,1764533440980,-150.0,0.00015549,2]
[395194196,1764533440989,-166.66,0.00015555,2]
[395194198,1764533440998,-150.0,0.00015571,2]
[395194200,1764533441008,-150.0,0.00015575,2]
[395194202,1764533441017,-150.0,0.00015583,2]
[395194204,1764533441027,-150.0,0.00015587,2]
[395194206,1764533441037,-150.0,0.00015601,2]
[395194208,1764533441047,-497.37061812,0.00015619,2]
[395194210,1764533441056,-150.0,0.00015627,2]
[395194212,1764533441066,-150.0,0.00015627,2]
[395194215,1764533441076,-150.0,0.00015627,2]
[395194217,1764533441085,-150.0,0.00015652,2]
[395194219,1764533441095,-150.0,0.00015654,2]
[395194221,1764533441104,-150.0,0.00015657,2]
[395194223,1764533441114,-150.0,0.00015665,2]
[395194225,1764533441124,-150.0,0.00015665,2]
[395194227,1764533441133,-584.62,0.00015674,2]
[395194229,1764533441143,-150.0,0.0001568,2]
[395194231,1764533441152,-150.0,0.0001568,2]
[395194233,1764533441162,-600.0,0.00015683,2]
[395194235,1764533441171,-150.0,0.00015687,2]
[395194237,1764533441181,-153.48713579,0.00015695,2]
[395194239,1764533441190,-150.0,0.00015695,2]
[395194241,1764533441200,-153.0061579,0.00015695,2]
[395194243,1764533441209,-150.0,0.00015695,2]
[395194245,1764533441219,-500.0,0.00015695,2]
[395194248,1764533441229,-500.0,0.00015695,2]
[395194250,1764533441241,-150.0,0.00015706,2]
[395194252,1764533441255,-10281.35951436,0.00015718,2]
[395194254,1764533441264,-150.0,0.00015731,2]
[395194256,1764533441274,-150.0,0.00015732,2]
[395194258,1764533441284,-618.29641447,0.00015734,2]
[395194260,1764533441294,-150.0,0.00015741,2]
[395194262,1764533441304,-150.0,0.00015758,2]
[395194264,1764533441314,-150.0,0.0001576,2]
[395194266,1764533441323,-150.0,0.00015773,2]
[395194268,1764533441333,-150.0,0.00015773,2]
[395194270,1764533441343,-150.0,0.00015784,2]
[395194272,1764533441352,-150.0,0.00015787,2]
[395194274,1764533441362,-255.0,0.00015802,2]
[395194276,1764533441371,-150.0,0.00015805,2]
[395194278,1764533441380,-150.0,0.0001581,2]
[395194280,1764533441390,-150.0,0.0001581,2]
[395194282,1764533441399,-158.66258758,0.00015832,2]
[395194284,1764533441408,-500.0,0.00015832,2]
[395194286,1764533441418,-500.0,0.00015832,2]
[395194288,1764533441427,-150.0,0.00015836,2]
[395194290,1764533441437,-150.0,0.00015854,2]
[395194292,1764533441446,-150.0,0.00015854,2]
[395194294,1764533441455,-150.0,0.00015854,2]
[395194297,1764533441465,-150.0,0.00015854,2]
[395194299,1764533441475,-151.0,0.00015858,2]
[395194301,1764533441484,-150.0,0.00015863,2]
[395194303,1764533441494,-150.0,0.00015878,2]
[395194305,1764533441504,-150.0,0.00015887,2]
[395194307,1764533441513,-150.0,0.00015889,2]
[395194309,1764533441522,-150.0,0.00015894,2]
[395194311,1764533441532,-914.28162139,0.000159,2]
[395194313,1764533441541,-914.28162134,0.000159,2]
[395194315,1764533441551,-914.28162134,0.000159,2]
[395194317,1764533441561,-914.28162134,0.000159,2]
[395194319,1764533441574,-914.28162134,0.000159,2]
[395194321,1764533441583,-914.28162134,0.000159,2]
[395194323,1764533441592,-150.0,0.00015915,2]
[395194325,1764533441602,-497.37061812,0.0001594,2]
[395194327,1764533441611,-150.0,0.00015941,2]
[395194329,1764533441620,-150.0,0.00015941,2]
[395194331,1764533441630,-584.62,0.00015948,2]
[395194333,1764533441639,-150.0,0.00015948,2]
[395194335,1764533441648,-200.0,0.00015948,2]
[395194337,1764533441658,-200.0,0.00015948,2]
[395194339,1764533441667,-150.0,0.00015952,2]
[395194341,1764533441676,-500.0,0.00015954,2]
[395194343,1764533441686,-500.0,0.00015954,2]
[395194345,1764533441695,-10281.35951436,0.00015955,2]
[395194347,1764533441704,-600.0,0.00015957,2]
[395194349,1764533441714,-150.0,0.00015967,2]
[395194352,1764533441723,-150.0,0.00015967,2]
[395194353,1764533441733,-150.0,0.00015967,2]